[Event "Early-Titled-Tuesday-Blitz-May-28-2024"]
[Site "Chess.com"]
[Date "2024.05.28"]
[Round "4"]
[White "Mr_ruthless"]
[Black "Karttunen"]
[Result "0-1"]
[WhiteElo "2465"]
[BlackElo "2639"]
[TimeControl "180+1"]
[EndTime "8:39:27 PDT"]
[Termination "Karttunen won by resignation"]

1. e4 {[%clk 0:03:00.5]} 1... e6 {[%clk 0:03:00]} 2. d4 {[%clk 0:02:59.2]} 2...
d5 {[%clk 0:03:00.4]} 3. Nd2 {[%clk 0:02:59.7]} 3... Nc6 {[%clk 0:02:57.7]} 4.
Ngf3 {[%clk 0:02:54.9]} 4... Nf6 {[%clk 0:02:57.2]} 5. e5 {[%clk 0:02:51.2]}
5... Nd7 {[%clk 0:02:57.2]} 6. Bb5 {[%clk 0:02:51.5]} 6... a6 {[%clk 0:02:47.1]}
7. Bxc6 {[%clk 0:02:50.4]} 7... bxc6 {[%clk 0:02:48]} 8. Nb3 {[%clk 0:02:49.8]}
8... h6 {[%clk 0:02:44.1]} 9. O-O {[%clk 0:02:48]} 9... c5 {[%clk 0:02:39.1]}
10. dxc5 {[%clk 0:02:29.8]} 10... Nxc5 {[%clk 0:02:37.8]} 11. Nfd4 {[%clk
0:02:23.3]} 11... Nxb3 {[%clk 0:02:34.9]} 12. Nxb3 {[%clk 0:02:19.5]} 12... c5
{[%clk 0:02:34.2]} 13. c4 {[%clk 0:02:17]} 13... a5 {[%clk 0:02:23.4]} 14. cxd5
{[%clk 0:02:08.9]} 14... exd5 {[%clk 0:02:23]} 15. Qe2 {[%clk 0:01:30.4]} 15...
Ba6 {[%clk 0:02:12.3]} 16. Qf3 {[%clk 0:01:23.5]} 16... Bxf1 {[%clk 0:02:10.3]}
17. Kxf1 {[%clk 0:01:24.4]} 17... a4 {[%clk 0:02:03.5]} 18. Nd2 {[%clk
0:01:24.1]} 18... Be7 {[%clk 0:01:55]} 19. Kg1 {[%clk 0:01:22.1]} 19... O-O
{[%clk 0:01:54.6]} 20. Nf1 {[%clk 0:01:22.6]} 20... f6 {[%clk 0:01:37.6]} 21.
Qg3 {[%clk 0:01:16]} 21... fxe5 {[%clk 0:01:33.5]} 22. Bxh6 {[%clk 0:01:15.9]}
22... Bf6 {[%clk 0:01:33.2]} 23. Ne3 {[%clk 0:01:13.2]} 23... Qd7 {[%clk
0:01:16.1]} 24. Rc1 {[%clk 0:01:07.1]} 24... Rac8 {[%clk 0:01:06.7]} 25. Rd1
{[%clk 0:00:59.8]} 25... d4 {[%clk 0:01:03.5]} 26. Nc4 {[%clk 0:01:00]} 26...
Rce8 {[%clk 0:00:54.7]} 27. b3 {[%clk 0:00:55]} 27... axb3 {[%clk 0:00:52.7]}
28. axb3 {[%clk 0:00:55.9]} 28... e4 {[%clk 0:00:51.5]} 29. Bf4 {[%clk 0:00:53]}
29... Qd5 {[%clk 0:00:45.3]} 30. Ra1 {[%clk 0:00:46.1]} 30... Ra8 {[%clk
0:00:43.3]} 31. Rxa8 {[%clk 0:00:34.4]} 31... Rxa8 {[%clk 0:00:42.7]} 32. h4
{[%clk 0:00:33.6]} 32... d3 {[%clk 0:00:39.8]} 33. Kh2 {[%clk 0:00:32.4]} 33...
Qh5 {[%clk 0:00:36.1]} 34. Kh3 {[%clk 0:00:28.3]} 34... Ra1 {[%clk 0:00:34.9]}
35. Qg4 {[%clk 0:00:14.6]} 35... Rh1+ {[%clk 0:00:32.3]} 36. Kg3 {[%clk
0:00:14.8]} 36... Bxh4+ {[%clk 0:00:30.8]} 0-1

[Event "Early-Titled-Tuesday-Blitz-May-28-2024"]
[Site "Chess.com"]
[Date "2024.05.28"]
[Round "4"]
[White "shimastream"]
[Black "Losingexperience"]
[Result "1-0"]
[WhiteElo "3039"]
[BlackElo "2765"]
[TimeControl "180+1"]
[EndTime "8:39:31 PDT"]
[Termination "shimastream won by resignation"]

1. Nf3 {[%clk 0:02:58.9]} 1... Nf6 {[%clk 0:02:59.6]} 2. g3 {[%clk 0:02:58.9]}
2... g6 {[%clk 0:02:59.5]} 3. Bg2 {[%clk 0:02:59]} 3... Bg7 {[%clk 0:03:00.4]}
4. b3 {[%clk 0:02:59.6]} 4... O-O {[%clk 0:03:00]} 5. Bb2 {[%clk 0:02:59.9]}
5... c5 {[%clk 0:03:00.1]} 6. d4 {[%clk 0:02:58.8]} 6... d5 {[%clk 0:02:56]} 7.
O-O {[%clk 0:02:46.3]} 7... Ne4 {[%clk 0:02:49]} 8. Qc1 {[%clk 0:02:38.2]} 8...
cxd4 {[%clk 0:02:24]} 9. Nxd4 {[%clk 0:02:39.1]} 9... e5 {[%clk 0:02:20]} 10.
Nf3 {[%clk 0:02:39]} 10... Nc6 {[%clk 0:02:19.9]} 11. c4 {[%clk 0:02:26.5]}
11... d4 {[%clk 0:01:58.2]} 12. Nxe5 {[%clk 0:02:22.5]} 12... Nxg3 {[%clk
0:01:57.3]} 13. hxg3 {[%clk 0:02:22.6]} 13... Nxe5 {[%clk 0:01:40.3]} 14. Nd2
{[%clk 0:02:21.4]} 14... Bg4 {[%clk 0:01:32.4]} 15. Re1 {[%clk 0:02:05.3]} 15...
Qd7 {[%clk 0:01:23.5]} 16. Ne4 {[%clk 0:01:54.5]} 16... Bh3 {[%clk 0:01:08.9]}
17. Qf4 {[%clk 0:01:48.5]} 17... Bxg2 {[%clk 0:01:07]} 18. Kxg2 {[%clk
0:01:49.4]} 18... Qc6 {[%clk 0:00:53.4]} 19. f3 {[%clk 0:01:47.9]} 19... f5
{[%clk 0:00:27.4]} 20. Nf2 {[%clk 0:01:46.8]} 20... Rad8 {[%clk 0:00:17]} 21.
Rad1 {[%clk 0:01:46.4]} 21... Ng4 {[%clk 0:00:11.2]} 22. Nxg4 {[%clk 0:01:43.5]}
22... fxg4 {[%clk 0:00:10.9]} 23. Qxg4 {[%clk 0:01:44.2]} 23... h5 {[%clk
0:00:05.9]} 24. Qg5 {[%clk 0:01:34.4]} 24... d3 {[%clk 0:00:04.1]} 25. Bxg7
{[%clk 0:01:08.2]} 25... dxe2 {[%clk 0:00:04.1]} 26. Rd5 {[%clk 0:01:08.8]}
26... Kxg7 {[%clk 0:00:03.1]} 27. Qe7+ {[%clk 0:00:49.6]} 27... Kh6 {[%clk
0:00:02.6]} 28. Qe3+ {[%clk 0:00:43.5]} 28... Kg7 {[%clk 0:00:02.2]} 29. Qd4+
{[%clk 0:00:43.7]} 29... Kh6 {[%clk 0:00:02.4]} 30. Rxe2 {[%clk 0:00:43.3]}
30... Rde8 {[%clk 0:00:01.8]} 31. Qd2+ {[%clk 0:00:38.8]} 31... Kg7 {[%clk
0:00:01.2]} 32. Rd7+ {[%clk 0:00:39.1]} 32... Kg8 {[%clk 0:00:01]} 33. Rxe8
{[%clk 0:00:30]} 33... Rxe8 {[%clk 0:00:01.9]} 34. Qd4 {[%clk 0:00:30.6]} 34...
Qe6 {[%clk 0:00:00.8]} 1-0

[Event "Early-Titled-Tuesday-Blitz-May-28-2024"]
[Site "Chess.com"]
[Date "2024.05.28"]
[Round "4"]
[White "Shankland"]
[Black "karinachess1"]
[Result "1-0"]
[WhiteElo "2982"]
[BlackElo "2607"]
[TimeControl "180+1"]
[EndTime "8:39:31 PDT"]
[Termination "Shankland won by resignation"]

1. e4 {[%clk 0:03:00.9]} 1... e5 {[%clk 0:03:00.3]} 2. Nf3 {[%clk 0:03:00.4]}
2... Nc6 {[%clk 0:03:00.7]} 3. d4 {[%clk 0:03:00.2]} 3... exd4 {[%clk
0:03:00.9]} 4. Nxd4 {[%clk 0:03:01]} 4... Bc5 {[%clk 0:03:01.1]} 5. Nb3 {[%clk
0:02:59.2]} 5... Bb6 {[%clk 0:03:01.5]} 6. Nc3 {[%clk 0:02:59.7]} 6... Nf6
{[%clk 0:03:01.9]} 7. Qe2 {[%clk 0:02:59]} 7... O-O {[%clk 0:03:02.3]} 8. Be3
{[%clk 0:02:59.1]} 8... Re8 {[%clk 0:03:02.3]} 9. f3 {[%clk 0:02:57]} 9... d5
{[%clk 0:03:02.6]} 10. O-O-O {[%clk 0:02:57]} 10... d4 {[%clk 0:03:03.2]} 11.
Bg5 {[%clk 0:02:55.8]} 11... Be6 {[%clk 0:03:03.9]} 12. Na4 {[%clk 0:02:54]}
12... h6 {[%clk 0:02:58.8]} 13. Bh4 {[%clk 0:02:52.5]} 13... Qe7 {[%clk
0:02:27.5]} 14. Kb1 {[%clk 0:02:49.3]} 14... Rad8 {[%clk 0:02:24.2]} 15. Qe1
{[%clk 0:02:37.7]} 15... Bxb3 {[%clk 0:01:57]} 16. axb3 {[%clk 0:02:35.6]} 16...
Ba5 {[%clk 0:01:51.2]} 17. Qg3 {[%clk 0:02:32.1]} 17... Ne5 {[%clk 0:01:38.1]}
18. Bxf6 {[%clk 0:02:19.1]} 18... Qxf6 {[%clk 0:01:37.1]} 19. Nc5 {[%clk
0:02:19.8]} 19... Qc6 {[%clk 0:01:26.8]} 20. Nd3 {[%clk 0:02:17.9]} 20... Ng6
{[%clk 0:01:20.6]} 21. h4 {[%clk 0:02:16.9]} 21... Qb6 {[%clk 0:01:06.7]} 22. h5
{[%clk 0:02:15.3]} 22... Nf8 {[%clk 0:01:07.3]} 23. e5 {[%clk 0:02:12.6]} 23...
Bb4 {[%clk 0:01:04.9]} 24. f4 {[%clk 0:02:11.1]} 24... Be7 {[%clk 0:01:00]} 25.
Nf2 {[%clk 0:02:05.4]} 25... a5 {[%clk 0:00:52.3]} 26. Ne4 {[%clk 0:02:03.9]}
26... Nh7 {[%clk 0:00:52.5]} 27. Bc4 {[%clk 0:01:58.6]} 27... Qc6 {[%clk
0:00:34.1]} 28. Qg6 {[%clk 0:01:47.3]} 28... Qxc4 {[%clk 0:00:32.7]} 29. Qxh7+
{[%clk 0:01:47]} 29... Kxh7 {[%clk 0:00:33.6]} 30. bxc4 {[%clk 0:01:47.3]} 30...
c6 {[%clk 0:00:20.5]} 31. Rh3 {[%clk 0:01:43.9]} 31... Rd7 {[%clk 0:00:20.5]}
32. Rhd3 {[%clk 0:01:39.4]} 32... c5 {[%clk 0:00:20.5]} 33. Rb3 {[%clk 0:01:37]}
33... Rc7 {[%clk 0:00:17.1]} 34. Rb6 {[%clk 0:01:33.8]} 34... Ra8 {[%clk
0:00:17.8]} 35. Rd3 {[%clk 0:01:33.4]} 35... a4 {[%clk 0:00:18]} 36. Ra3 {[%clk
0:01:32]} 36... Kg8 {[%clk 0:00:18.6]} 37. b3 {[%clk 0:01:28.4]} 37... Kf8
{[%clk 0:00:18.7]} 38. Rxa4 {[%clk 0:01:27.8]} 38... Rxa4 {[%clk 0:00:18.9]} 39.
bxa4 {[%clk 0:01:28.7]} 39... Ke8 {[%clk 0:00:19.5]} 40. a5 {[%clk 0:01:29.1]}
40... Kd7 {[%clk 0:00:19.7]} 41. f5 {[%clk 0:01:26.1]} 41... Kc8 {[%clk
0:00:20.1]} 42. g4 {[%clk 0:01:25.5]} 42... Rd7 {[%clk 0:00:18.1]} 43. Nf2
{[%clk 0:01:18.5]} 43... Bg5 {[%clk 0:00:15.1]} 44. Nd3 {[%clk 0:01:17.4]} 44...
Be7 {[%clk 0:00:14.8]} 45. Kc1 {[%clk 0:01:15.5]} 45... Kc7 {[%clk 0:00:14.9]}
46. Kd1 {[%clk 0:01:15.2]} 46... Rd8 {[%clk 0:00:14.9]} 47. Ke2 {[%clk
0:01:13.8]} 47... Ra8 {[%clk 0:00:15.1]} 48. Rb5 {[%clk 0:01:14.1]} 48... Kc6
{[%clk 0:00:15.9]} 49. Kf3 {[%clk 0:01:14]} 49... Rd8 {[%clk 0:00:09.9]} 50. Ke4
{[%clk 0:01:12.9]} 50... Ra8 {[%clk 0:00:09.7]} 51. Rb6+ {[%clk 0:01:08.9]}
51... Kc7 {[%clk 0:00:09.9]} 52. Nf4 {[%clk 0:01:09.2]} 52... Rxa5 {[%clk
0:00:09]} 53. Nd5+ {[%clk 0:01:09.3]} 53... Kd8 {[%clk 0:00:08.9]} 54. Rxb7
{[%clk 0:01:09.7]} 54... Ra3 {[%clk 0:00:07.3]} 55. Rxe7 {[%clk 0:01:08.1]} 1-0

[Event "Early-Titled-Tuesday-Blitz-May-28-2024"]
[Site "Chess.com"]
[Date "2024.05.28"]
[Round "4"]
[White "Matsanovic"]
[Black "Arteler"]
[Result "1-0"]
[WhiteElo "2618"]
[BlackElo "2234"]
[TimeControl "180+1"]
[EndTime "8:39:32 PDT"]
[Termination "Matsanovic won by resignation"]

1. e4 {[%clk 0:03:00.9]} 1... e5 {[%clk 0:03:00]} 2. Nc3 {[%clk 0:02:54.9]} 2...
d6 {[%clk 0:03:00]} 3. g3 {[%clk 0:02:53.9]} 3... Nf6 {[%clk 0:02:59.5]} 4. Bg2
{[%clk 0:02:54.4]} 4... Ke7 {[%clk 0:02:59.5]} 5. Nf3 {[%clk 0:02:51.5]} 5... g6
{[%clk 0:02:56.6]} 6. d4 {[%clk 0:02:51.4]} 6... exd4 {[%clk 0:02:53.7]} 7. Nxd4
{[%clk 0:02:48.6]} 7... Bg7 {[%clk 0:02:53.2]} 8. O-O {[%clk 0:02:44]} 8... Re8
{[%clk 0:02:53.7]} 9. Re1 {[%clk 0:02:42.5]} 9... Kf8 {[%clk 0:02:54.1]} 10. h3
{[%clk 0:02:41.4]} 10... Kg8 {[%clk 0:02:54.2]} 11. a4 {[%clk 0:02:40.9]} 11...
Nc6 {[%clk 0:02:53.9]} 12. Nb3 {[%clk 0:02:39.9]} 12... a6 {[%clk 0:02:48.8]}
13. a5 {[%clk 0:02:39.9]} 13... Nd7 {[%clk 0:02:42.7]} 14. f4 {[%clk 0:02:37.7]}
14... Nf6 {[%clk 0:02:20.9]} 15. Kh2 {[%clk 0:02:37.3]} 15... Nb4 {[%clk
0:02:13.6]} 16. Ra4 {[%clk 0:02:32.7]} 16... c5 {[%clk 0:02:05.5]} 17. Be3
{[%clk 0:02:21]} 17... Bd7 {[%clk 0:02:02.2]} 18. Ra1 {[%clk 0:02:20.4]} 18...
Nxe4 {[%clk 0:01:57]} 19. Nxe4 {[%clk 0:02:15.6]} 19... Bf5 {[%clk 0:01:46.8]}
20. Nxd6 {[%clk 0:02:11.6]} 20... Nxc2 {[%clk 0:01:21.5]} 21. Nxe8 {[%clk
0:02:07.2]} 21... Qxe8 {[%clk 0:01:05.8]} 22. Bxc5 {[%clk 0:01:59.4]} 22... Nxe1
{[%clk 0:01:05]} 23. Qxe1 {[%clk 0:02:00.2]} 23... Qb5 {[%clk 0:01:05.5]} 24.
Qb4 {[%clk 0:01:55]} 24... Qe2 {[%clk 0:00:40.9]} 25. Qxb7 {[%clk 0:01:40.3]}
25... Re8 {[%clk 0:00:36.5]} 26. Qf3 {[%clk 0:01:22.6]} 26... Qxb2 {[%clk
0:00:34.9]} 27. Rg1 {[%clk 0:01:04.8]} 27... Be4 {[%clk 0:00:29.4]} 28. Qe3
{[%clk 0:00:58.3]} 28... Bc6 {[%clk 0:00:19]} 29. Qd3 {[%clk 0:00:51.9]} 29...
Bb5 {[%clk 0:00:18.8]} 30. Qd5 {[%clk 0:00:48.4]} 30... Re2 {[%clk 0:00:14]} 31.
Qa8+ {[%clk 0:00:47.9]} 31... Re8 {[%clk 0:00:13.9]} 32. Qd5 {[%clk 0:00:47.8]}
32... Re2 {[%clk 0:00:13.8]} 33. Nd4 {[%clk 0:00:43.4]} 33... Bxd4 {[%clk
0:00:09.7]} 34. Bxd4 {[%clk 0:00:41.9]} 34... Qc2 {[%clk 0:00:08]} 35. Qd8+
{[%clk 0:00:39.3]} 35... Re8 {[%clk 0:00:07.3]} 36. Qf6 {[%clk 0:00:39.6]} 36...
Kf8 {[%clk 0:00:04.7]} 37. Qh8+ {[%clk 0:00:38]} 37... Ke7 {[%clk 0:00:05.3]}
38. Re1+ {[%clk 0:00:36.5]} 38... Kd6 {[%clk 0:00:04.9]} 39. Qf6+ {[%clk
0:00:34.9]} 39... Kd7 {[%clk 0:00:03.6]} 40. Qxf7+ {[%clk 0:00:33.2]} 40... Re7
{[%clk 0:00:03.2]} 41. Qxe7+ {[%clk 0:00:32.5]} 41... Kc8 {[%clk 0:00:03]} 42.
Qf8+ {[%clk 0:00:30.4]} 1-0

[Event "Early-Titled-Tuesday-Blitz-May-28-2024"]
[Site "Chess.com"]
[Date "2024.05.28"]
[Round "4"]
[White "TitarovVasiliYouTube"]
[Black "David_Arutinian"]
[Result "0-1"]
[WhiteElo "2584"]
[BlackElo "2843"]
[TimeControl "180+1"]
[EndTime "8:39:36 PDT"]
[Termination "David_Arutinian won by resignation"]

1. g3 {[%clk 0:03:00.9]} 1... e5 {[%clk 0:02:56.7]} 2. c4 {[%clk 0:03:00.8]}
2... Nf6 {[%clk 0:02:56.3]} 3. Bg2 {[%clk 0:03:00.5]} 3... d5 {[%clk 0:02:55.3]}
4. cxd5 {[%clk 0:03:01.2]} 4... Nxd5 {[%clk 0:02:56]} 5. Nc3 {[%clk 0:03:01.1]}
5... Nb6 {[%clk 0:02:56.6]} 6. Nf3 {[%clk 0:03:00.8]} 6... Nc6 {[%clk
0:02:57.1]} 7. O-O {[%clk 0:03:01.2]} 7... Be7 {[%clk 0:02:57.7]} 8. d3 {[%clk
0:03:01.7]} 8... O-O {[%clk 0:02:58.2]} 9. a3 {[%clk 0:03:00.1]} 9... Be6 {[%clk
0:02:58.2]} 10. Be3 {[%clk 0:03:00.3]} 10... f5 {[%clk 0:02:48.7]} 11. Rc1
{[%clk 0:02:57.6]} 11... Qd7 {[%clk 0:02:41.1]} 12. Qc2 {[%clk 0:02:47.7]} 12...
Bf6 {[%clk 0:02:28]} 13. Na4 {[%clk 0:02:23.5]} 13... Nxa4 {[%clk 0:02:22.5]}
14. Qxa4 {[%clk 0:02:24.4]} 14... Nd4 {[%clk 0:01:58.6]} 15. Qd1 {[%clk
0:02:18.2]} 15... c6 {[%clk 0:01:50.8]} 16. Bxd4 {[%clk 0:01:54.8]} 16... exd4
{[%clk 0:01:50.5]} 17. Qa4 {[%clk 0:01:50.3]} 17... Rfe8 {[%clk 0:01:47.4]} 18.
Rfe1 {[%clk 0:01:47.9]} 18... Bf7 {[%clk 0:01:35.4]} 19. Nd2 {[%clk 0:01:39.1]}
19... Bg5 {[%clk 0:01:34.7]} 20. Rcd1 {[%clk 0:01:35.4]} 20... a5 {[%clk
0:01:20.3]} 21. Nf3 {[%clk 0:01:35.3]} 21... Bf6 {[%clk 0:01:20]} 22. Qc2 {[%clk
0:01:31.2]} 22... a4 {[%clk 0:01:14.8]} 23. Nd2 {[%clk 0:01:27.2]} 23... Qd8
{[%clk 0:01:11]} 24. Nc4 {[%clk 0:01:17.6]} 24... b5 {[%clk 0:01:04.5]} 25. Nd2
{[%clk 0:01:17.3]} 25... Rc8 {[%clk 0:01:04.5]} 26. Qc5 {[%clk 0:01:02.2]} 26...
g6 {[%clk 0:01:00.6]} 27. Rc1 {[%clk 0:00:45.3]} 27... Re5 {[%clk 0:01:00.2]}
28. Qc2 {[%clk 0:00:34]} 28... c5 {[%clk 0:00:59.7]} 29. Nf3 {[%clk 0:00:32.9]}
29... Re7 {[%clk 0:00:56.5]} 30. Nd2 {[%clk 0:00:24.6]} 30... Kg7 {[%clk
0:00:56.4]} 31. Bf3 {[%clk 0:00:24.8]} 31... Rec7 {[%clk 0:00:54.4]} 32. Bg2
{[%clk 0:00:21.7]} 32... Qd7 {[%clk 0:00:52]} 33. Bf3 {[%clk 0:00:22]} 33... c4
{[%clk 0:00:51.7]} 34. dxc4 {[%clk 0:00:20.8]} 34... bxc4 {[%clk 0:00:51.8]} 35.
Red1 {[%clk 0:00:20.7]} 35... c3 {[%clk 0:00:51.5]} 36. bxc3 {[%clk 0:00:19.5]}
36... Rxc3 {[%clk 0:00:51.4]} 37. Qb1 {[%clk 0:00:17.8]} 37... Rxa3 {[%clk
0:00:47.9]} 38. Rxc8 {[%clk 0:00:16.3]} 38... Qxc8 {[%clk 0:00:47.8]} 39. Qb2
{[%clk 0:00:15.4]} 39... Rc3 {[%clk 0:00:44.8]} 40. Qb6 {[%clk 0:00:14.3]} 40...
a3 {[%clk 0:00:41.9]} 41. Qa7 {[%clk 0:00:14.5]} 41... Qc7 {[%clk 0:00:40.9]}
42. Qa6 {[%clk 0:00:14]} 42... Rc1 {[%clk 0:00:37.4]} 43. Qa4 {[%clk 0:00:12.5]}
43... a2 {[%clk 0:00:36.3]} 44. Kg2 {[%clk 0:00:11]} 44... Rxd1 {[%clk
0:00:35.7]} 45. Qxd1 {[%clk 0:00:11.9]} 45... Qc3 {[%clk 0:00:36.2]} 46. Nb3
{[%clk 0:00:11.5]} 46... Bxb3 {[%clk 0:00:35.5]} 0-1

[Event "Early-Titled-Tuesday-Blitz-May-28-2024"]
[Site "Chess.com"]
[Date "2024.05.28"]
[Round "4"]
[White "RespectfulDaveOnYouTube"]
[Black "jamengrand"]
[Result "0-1"]
[WhiteElo "2489"]
[BlackElo "2333"]
[TimeControl "180+1"]
[EndTime "8:39:36 PDT"]
[Termination "jamengrand won on time"]

1. e4 {[%clk 0:02:45.3]} 1... Nc6 {[%clk 0:02:59.5]} 2. Nf3 {[%clk 0:02:44.2]}
2... e5 {[%clk 0:02:58.8]} 3. d4 {[%clk 0:02:43.2]} 3... exd4 {[%clk 0:02:58.3]}
4. Bc4 {[%clk 0:02:39.3]} 4... Nf6 {[%clk 0:02:57.7]} 5. Ng5 {[%clk 0:02:06.7]}
5... d5 {[%clk 0:02:51.8]} 6. exd5 {[%clk 0:02:05.9]} 6... Qe7+ {[%clk
0:02:51.9]} 7. Kf1 {[%clk 0:02:01.1]} 7... Ne5 {[%clk 0:02:52]} 8. Qxd4 {[%clk
0:01:51.6]} 8... Nxc4 {[%clk 0:02:51.6]} 9. Qxc4 {[%clk 0:01:49]} 9... Qc5
{[%clk 0:02:51.5]} 10. Qxc5 {[%clk 0:01:28.8]} 10... Bxc5 {[%clk 0:02:52.4]} 11.
Nc3 {[%clk 0:01:19.9]} 11... O-O {[%clk 0:02:44.9]} 12. Be3 {[%clk 0:01:15.3]}
12... Bxe3 {[%clk 0:02:34.4]} 13. fxe3 {[%clk 0:01:15.3]} 13... Re8 {[%clk
0:02:33.7]} 14. Re1 {[%clk 0:01:08.4]} 14... h6 {[%clk 0:02:14.5]} 15. Nf3
{[%clk 0:01:08.4]} 15... Bf5 {[%clk 0:02:12.8]} 16. Nd4 {[%clk 0:01:07.6]} 16...
Be4 {[%clk 0:02:10.6]} 17. Nxe4 {[%clk 0:00:55.4]} 17... Rxe4 {[%clk 0:02:09]}
18. c4 {[%clk 0:00:47.3]} 18... Rae8 {[%clk 0:02:05.7]} 19. h3 {[%clk
0:00:33.3]} 19... Rxe3 {[%clk 0:01:49.7]} 20. Kf2 {[%clk 0:00:30.2]} 20... R3e4
{[%clk 0:01:33.2]} 21. Nb5 {[%clk 0:00:16.3]} 21... Rxc4 {[%clk 0:01:27.2]} 22.
Rxe8+ {[%clk 0:00:15.9]} 22... Nxe8 {[%clk 0:01:26.8]} 23. Re1 {[%clk
0:00:08.5]} 23... Kf8 {[%clk 0:01:26.4]} 24. Re2 {[%clk 0:00:05.2]} 24... a6
{[%clk 0:01:19.8]} 25. Nc3 {[%clk 0:00:01.7]} 25... Nf6 {[%clk 0:01:19.8]} 26.
Rd2 {[%clk 0:00:01.4]} 26... b5 {[%clk 0:01:18.5]} 27. a3 {[%clk 0:00:01]} 27...
Ke7 {[%clk 0:00:57.3]} 28. Ke3 {[%clk 0:00:01.3]} 28... Kd6 {[%clk 0:00:54.6]}
29. Rf2 {[%clk 0:00:01.2]} 29... b4 {[%clk 0:00:46.5]} 30. axb4 {[%clk
0:00:01.3]} 30... Rxb4 {[%clk 0:00:46.7]} 31. Kd3 {[%clk 0:00:01.9]} 31... a5
{[%clk 0:00:41.2]} 32. g4 {[%clk 0:00:01.5]} 32... a4 {[%clk 0:00:38]} 33. Na2
{[%clk 0:00:01.2]} 33... Rb3+ {[%clk 0:00:24.4]} 34. Nc3 {[%clk 0:00:01.5]}
34... Nxd5 {[%clk 0:00:17.6]} 35. Rxf7 {[%clk 0:00:02]} 35... a3 {[%clk
0:00:18.2]} 0-1

[Event "Early-Titled-Tuesday-Blitz-May-28-2024"]
[Site "Chess.com"]
[Date "2024.05.28"]
[Round "4"]
[White "zajka-molotok"]
[Black "EvgenyBurmakin"]
[Result "1-0"]
[WhiteElo "2534"]
[BlackElo "2345"]
[TimeControl "180+1"]
[EndTime "8:39:38 PDT"]
[Termination "zajka-molotok won by resignation"]

1. e4 {[%clk 0:03:00.9]} 1... c5 {[%clk 0:02:55.7]} 2. c3 {[%clk 0:03:00.8]}
2... Nf6 {[%clk 0:02:54.8]} 3. e5 {[%clk 0:03:00.7]} 3... Nd5 {[%clk 0:02:55.2]}
4. Nf3 {[%clk 0:03:00.5]} 4... e6 {[%clk 0:02:55.4]} 5. Bc4 {[%clk 0:02:59]}
5... Be7 {[%clk 0:02:51.8]} 6. d4 {[%clk 0:02:58.1]} 6... cxd4 {[%clk
0:02:50.9]} 7. cxd4 {[%clk 0:02:59]} 7... b6 {[%clk 0:02:50.8]} 8. O-O {[%clk
0:02:51.2]} 8... Bb7 {[%clk 0:02:50.6]} 9. Qe2 {[%clk 0:02:44.4]} 9... O-O
{[%clk 0:02:40.6]} 10. Rd1 {[%clk 0:02:39.9]} 10... d6 {[%clk 0:02:28.6]} 11.
Bd2 {[%clk 0:02:25.8]} 11... a6 {[%clk 0:02:27.1]} 12. Nc3 {[%clk 0:02:23.5]}
12... Nxc3 {[%clk 0:02:26.1]} 13. Bxc3 {[%clk 0:02:23]} 13... b5 {[%clk
0:02:26.6]} 14. Bd3 {[%clk 0:02:21.6]} 14... Nd7 {[%clk 0:02:26.5]} 15. Rac1
{[%clk 0:02:12.2]} 15... Rc8 {[%clk 0:02:25.1]} 16. Bb1 {[%clk 0:02:10.6]} 16...
Qb6 {[%clk 0:02:06.4]} 17. Qd3 {[%clk 0:02:08.6]} 17... g6 {[%clk 0:02:06.4]}
18. h4 {[%clk 0:02:05.3]} 18... b4 {[%clk 0:02:03.8]} 19. Bd2 {[%clk 0:02:03.3]}
19... Rxc1 {[%clk 0:02:04]} 20. Bxc1 {[%clk 0:02:01.7]} 20... Rd8 {[%clk
0:01:53.5]} 21. Bg5 {[%clk 0:01:54.6]} 21... Bxg5 {[%clk 0:01:49.2]} 22. Nxg5
{[%clk 0:01:52.1]} 22... Qc6 {[%clk 0:01:10.6]} 23. Qg3 {[%clk 0:01:44.3]} 23...
Nf8 {[%clk 0:01:02.2]} 24. Ne4 {[%clk 0:01:30.5]} 24... dxe5 {[%clk 0:01:02.4]}
25. Nf6+ {[%clk 0:01:29.8]} 25... Kg7 {[%clk 0:00:55.8]} 26. Be4 {[%clk
0:01:29.6]} 26... Qc7 {[%clk 0:00:20.5]} 27. Nh5+ {[%clk 0:01:14.8]} 27... Kh8
{[%clk 0:00:18.3]} 28. Bxb7 {[%clk 0:01:12.6]} 28... gxh5 {[%clk 0:00:18.5]} 29.
Bxa6 {[%clk 0:01:00]} 29... Ng6 {[%clk 0:00:18.9]} 30. Be2 {[%clk 0:00:53.5]}
30... Qc2 {[%clk 0:00:16.4]} 31. Bxh5 {[%clk 0:00:50.5]} 31... Rxd4 {[%clk
0:00:12.9]} 32. Rxd4 {[%clk 0:00:45.9]} 32... exd4 {[%clk 0:00:13.1]} 33. Bxg6
{[%clk 0:00:44.7]} 33... hxg6 {[%clk 0:00:05.7]} 34. Qe5+ {[%clk 0:00:43.4]}
34... Kg8 {[%clk 0:00:05.5]} 35. Qxd4 {[%clk 0:00:44.3]} 35... Qb1+ {[%clk
0:00:01.2]} 36. Kh2 {[%clk 0:00:44.3]} 36... Qxa2 {[%clk 0:00:02.1]} 37. Qxb4
{[%clk 0:00:44.5]} 37... Qd5 {[%clk 0:00:02.4]} 38. Qb8+ {[%clk 0:00:42.5]}
38... Kg7 {[%clk 0:00:02.3]} 39. b4 {[%clk 0:00:42.5]} 39... e5 {[%clk
0:00:02.1]} 40. b5 {[%clk 0:00:40.9]} 40... Qd4 {[%clk 0:00:02.6]} 41. Kh3
{[%clk 0:00:30.2]} 41... Qe3+ {[%clk 0:00:02.3]} 42. fxe3 {[%clk 0:00:29.5]}
42... e4 {[%clk 0:00:02.8]} 43. Qe5+ {[%clk 0:00:28.8]} 1-0